bitfinex/quotes_SOLUSD_20260108
["timestamp","ask_amount","ask_price","bid_price","bid_amount"]
[1767852920736,20.06175486,135.92,135.87,2.21969062]
[1767852920737,0.6808659,135.91,135.89,2.21969062]
[1767852920937,0.6808659,135.92,135.89,2.21969062]
[1767852921628,0.6808659,135.92,135.86,13.52999999]
[1767852921829,0.6808659,135.89,135.84,13.52999999]
[1767852922042,0.6808659,135.89,135.85,2.21969062]
[1767852922846,0.6808659,135.87,135.83,15.65969062]
[1767852923224,0.6808659,135.87,135.83,15.74969061]
[1767852924059,0.6808659,135.87,135.84,2.21969062]
[1767852924251,0.6808659,135.88,135.85,2.21969062]
[1767852925154,7.30439186,135.88,135.85,2.21969062]
[1767852926057,0.6808659,135.88,135.85,2.21969062]
[1767852926350,7.30437567,135.88,135.84,0.08999999]
[1767852926555,7.30437567,135.88,135.84,2.30969061]
[1767852927556,0.6808659,135.87,135.82,2.21969062]
[1767852927741,0.6808659,135.86,135.82,13.44]
[1767852928946,7.30630759,135.84,135.8,2.30969061]
[1767852929259,0.6808659,135.83,135.79,0.08999999]
[1767852929442,0.6808659,135.83,135.79,2.30969061]
[1767852929644,0.6808659,135.83,135.79,0.08999999]
[1767852929835,0.6808659,135.83,135.78,15.74969061]
[1767852930154,0.6808659,135.83,135.78,7.45466625]
[1767852930361,0.6808659,135.83,135.78,9.67435687]
[1767852930742,0.6808659,135.83,135.78,2.30969061]
[1767852931147,0.6808659,135.82,135.78,2.21969062]
[1767852931331,0.6808659,135.82,135.77,15.74969061]
[1767852931535,0.6808659,135.82,135.77,15.65969062]
[1767852931737,0.6808659,135.81,135.77,13.44]
[1767852932254,0.6808659,135.81,135.77,15.65969062]
[1767852932847,0.6808659,135.81,135.78,2.21969062]
[1767852933455,0.6808659,135.81,135.77,7.36533606]
[1767852933769,0.6808659,135.81,135.76,20.89575458]
[1767852933967,0.6808659,135.81,135.77,2.21969062]
[1767852934557,7.30781537,135.81,135.77,2.21969062]
[1767852934762,0.67859077,135.8,135.77,2.21969062]
[1767852935767,0.82075234,135.84,135.79,2.30969061]
[1767852935941,0.82075234,135.84,135.79,2.21969062]
[1767852936263,0.67859077,135.83,135.78,2.30969061]
[1767852936966,0.67859077,135.81,135.76,13.52999999]
[1767852937178,0.67859077,135.81,135.77,2.21969062]
[1767852937775,0.67859077,135.81,135.76,9.67559014]
[1767852937956,0.67859077,135.81,135.77,2.21969062]
[1767852940652,0.67859077,135.81,135.78,3.47504217]
[1767852941583,0.67859077,135.81,135.77,0.08999999]
[1767852941751,0.67859077,135.81,135.77,3.56504216]
[1767852942068,0.67859077,135.81,135.78,3.47504217]
[1767852942463,0.67859077,135.82,135.78,0.70182183]
[1767852943782,0.67859077,135.81,135.78,4.176864]
[1767852944952,6.62666408,135.82,135.79,3.47504217]
[1767852944953,0.67859077,135.82,135.79,3.47504217]
[1767852945367,14.11859077,135.85,135.81,0.70182183]
[1767852945565,0.67859077,135.85,135.79,0.70182183]
[1767852945749,0.67859077,135.84,135.81,3.47504217]
[1767852946061,0.67859077,135.84,135.8,3.47504217]
[1767852946652,0.67859077,135.85,135.82,3.47504217]
[1767852947569,0.67859077,135.85,135.8,0.70182183]
[1767852947777,0.67859077,135.84,135.81,3.47504217]
[1767852948858,0.67859077,135.84,135.8,0.70182183]
[1767852949058,0.67859077,135.84,135.81,3.47504217]
[1767852950268,0.67859077,135.84,135.79,0.70182183]
[1767852950269,0.67859077,135.83,135.79,0.70182183]
[1767852950465,0.67859077,135.83,135.8,3.47504217]
[1767852951069,7.30371189,135.85,135.82,3.47504217]
[1767852951275,7.30371189,135.85,135.81,4.176864]
[1767852951471,0.67859077,135.84,135.81,4.176864]
[1767852951786,0.67859077,135.84,135.81,0.70182183]
[1767852953472,0.67859077,135.84,135.81,4.176864]
[1767852953783,7.30422207,135.84,135.8,4.176864]
[1767852954275,0.67859077,135.84,135.8,4.176864]
[1767852954477,0.67859077,135.84,135.81,4.176864]
[1767852954680,7.30413835,135.84,135.8,4.176864]
[1767852955179,7.3031936,135.86,135.81,11.54006941]
[1767852955479,0.67859077,135.86,135.82,4.176864]
[1767852955659,0.67859077,135.86,135.81,7.36320541]
[1767852955660,7.3027776,135.87,135.83,4.176864]
[1767852955859,0.67859077,135.88,135.84,4.176864]
[1767852956072,0.67859077,135.88,135.85,4.176864]
[1767852957082,0.67859077,135.89,135.85,4.176864]
[1767852958158,0.67859077,135.89,135.85,0.70182183]
[1767852958363,0.67859077,135.89,135.85,11.53791674]
[1767852958665,106.24455707,135.91,135.87,3.47504217]
[1767852958666,7.30063482,135.91,135.87,3.47504217]
[1767852958869,7.30063482,135.91,135.87,4.176864]
[1767852959379,7.30065136,135.91,135.87,4.176864]
[1767852959588,0.67859077,135.9,135.87,0.70182183]
[1767852959958,0.67859077,135.91,135.87,4.176864]
[1767852960482,7.30025216,135.92,135.88,4.176864]
[1767852960689,7.30025216,135.92,135.85,13.44]
[1767852960690,7.30024582,135.92,135.87,4.176864]
[1767852961071,0.67859077,135.91,135.87,4.176864]
[1767852961461,0.67859077,135.9,135.85,0.70182183]
[1767852961667,0.67859077,135.9,135.85,4.176864]
[1767852962481,0.68561521,135.89,135.85,0.70182183]
[1767852963586,0.68561521,135.89,135.83,0.68234251]
[1767852963587,0.70674688,135.88,135.83,0.68234251]
[1767852963789,0.70674688,135.88,135.84,3.47504217]
[1767852963987,0.70674688,135.88,135.84,4.15738468]
[1767852964169,0.70674688,135.88,135.85,0.68234251]
[1767852964578,0.70674688,135.88,135.84,4.15738468]
[1767852965267,0.70674688,135.88,135.85,4.15738468]
[1767852965669,7.32936434,135.9,135.86,4.15738468]
[1767852965883,0.70674688,135.9,135.86,4.15738468]
[1767852966276,7.32929955,135.9,135.86,4.15738468]
[1767852966883,0.70674688,135.9,135.87,0.68234251]
[1767852967277,0.70674688,135.9,135.87,4.15738468]
[1767852967880,0.70674688,135.9,135.87,0.68234251]
[1767852968283,30.70077374,135.92,135.87,4.15738468]
[1767852968483,0.70674688,135.91,135.87,4.15738468]
[1767852969405,0.70674688,135.9,135.85,4.15738468]
[1767852969700,0.70674688,135.89,135.84,0.68234251]
[1767852969869,0.70674688,135.89,135.85,0.68234251]
[1767852971386,0.70674688,135.88,135.84,4.15738468]
[1767852971573,0.70674688,135.87,135.82,0.68234251]
[1767852971775,0.70674688,135.87,135.83,0.68234251]
[1767852973818,7.33092766,135.87,135.82,4.15738468]
[1767852974120,0.70674688,135.86,135.82,0.68234251]
[1767852974279,0.67674688,135.86,135.82,0.68234251]
[1767852976383,0.67674688,135.86,135.82,4.15738468]
[1767852978210,0.67674688,135.86,135.83,4.15738468]
[1767852979311,0.70674688,135.85,135.81,0.68234251]
[1767852979490,0.70674688,135.86,135.82,4.15738468]
[1767852979897,0.70674688,135.88,135.84,0.68234251]
[1767852980202,0.70674688,135.88,135.85,0.68234251]
[1767852981516,0.70674688,135.89,135.85,0.68234251]
[1767852982403,0.70674688,135.89,135.85,4.15738468]
[1767852982716,7.32982194,135.89,135.85,0.68234251]
[1767852986110,0.70674688,135.88,135.83,4.15738468]
[1767852986625,0.70674688,135.88,135.84,0.68234251]
[1767852987116,7.33056666,135.88,135.84,0.68234251]
[1767852991505,0.70674688,135.86,135.81,0.68234251]
[1767852991706,0.70674688,135.86,135.81,4.15738468]
[1767852991914,0.70674688,135.85,135.81,0.68234251]
[1767852992212,0.69121332,135.86,135.82,0.70509125]
[1767852992402,0.69121332,135.86,135.82,4.18013342]
[1767852993425,0.69121332,135.85,135.81,0.70509125]
[1767852993722,0.69121332,135.85,135.81,4.18013342]
[1767852994797,7.31617412,135.85,135.82,0.70509125]
[1767852996026,0.69121332,135.85,135.82,0.70509125]
[1767852997014,0.69121332,135.86,135.82,4.18013342]
[1767852997330,0.66121332,135.86,135.82,0.70509125]
[1767852997528,10.09956175,135.86,135.79,3.47504217]
[1767852997737,3.47504217,135.84,135.78,4.18013342]
[1767852998022,0.28432314,135.85,135.78,0.70509125]
[1767852998225,3.47504217,135.83,135.77,17.62013342]
[1767852998398,3.47504217,135.82,135.77,0.70509125]
[1767852998809,10.10177944,135.82,135.77,0.70509125]
[1767852999020,6.62673727,135.82,135.77,4.18013342]
[1767852999224,0.69121332,135.8,135.76,0.70509125]
[1767852999524,0.69121332,135.8,135.75,4.18013342]
[1767853000229,0.69121332,135.8,135.75,0.70509125]
[1767853000402,7.3190196,135.8,135.75,4.18013342]
[1767853000606,0.69121332,135.79,135.75,0.70509125]
[1767853000833,0.69121332,135.78,135.75,0.70509125]
[1767853001316,0.69121332,135.79,135.75,0.70509125]
[1767853001719,0.69121332,135.79,135.75,2.92978442]
[1767853002436,7.31937918,135.79,135.75,2.92978442]
[1767853002734,0.69121332,135.78,135.75,2.92978442]
[1767853003514,0.69121332,135.78,135.73,21.51242516]
[1767853003814,0.69121332,135.78,135.75,2.22469317]
[1767853004017,7.31937918,135.79,135.75,2.92978442]
[1767853004417,0.69121332,135.81,135.76,2.92978442]
[1767853004936,0.69121332,135.8,135.76,0.70509125]
[1767853005231,0.69121332,135.8,135.74,2.92978442]
[1767853005232,0.69121332,135.79,135.74,2.92978442]
[1767853005427,0.69121332,135.79,135.75,0.70509125]
[1767853005824,0.69121332,135.79,135.74,2.22469317]
[1767853005825,0.69121332,135.78,135.74,2.92978442]
[1767853006030,0.69121332,135.78,135.74,2.22469317]
[1767853006231,0.69121332,135.78,135.73,0.70509125]
[1767853006532,0.69121332,135.77,135.74,2.92978442]
[1767853006934,0.69121332,135.78,135.74,2.92978442]
[1767853007732,0.69121332,135.78,135.73,2.92978442]
[1767853007930,0.69121332,135.78,135.74,2.92978442]
[1767853008629,0.69121332,135.78,135.74,0.70509125]
[1767853008822,0.69121332,135.78,135.74,2.92978442]
[1767853009713,0.69121332,135.77,135.74,2.92978442]
[1767853010622,0.69121332,135.78,135.75,2.92978442]
[1767853010933,0.69121332,135.79,135.75,2.92978442]
[1767853011623,6.62787332,135.8,135.74,7.3669999]
[1767853011624,0.69121332,135.82,135.78,0.70509125]
[1767853011823,7.31734546,135.83,135.79,2.92978442]
[1767853012022,0.69121332,135.83,135.8,2.22469317]
[1767853012220,0.69121332,135.83,135.8,2.92978442]
[1767853012419,0.69121332,135.83,135.78,0.70509125]
[1767853012623,0.69121332,135.82,135.78,2.92978442]
[1767853012833,7.31785337,135.82,135.78,2.92978442]
[1767853013136,0.69121332,135.81,135.78,2.22469317]
[1767853013338,0.69121332,135.81,135.77,2.92978442]
[1767853013918,0.69121332,135.81,135.78,2.22469317]
[1767853015640,7.31785337,135.82,135.78,2.92978442]
[1767853015827,7.31732508,135.83,135.79,2.92978442]
[1767853016031,0.69121332,135.82,135.79,2.22469317]
[1767853016246,0.69121332,135.82,135.78,2.92978442]
[1767853016416,0.69121332,135.82,135.78,0.70509125]
[1767853016621,0.69121332,135.82,135.78,2.92978442]
[1767853017948,7.31732508,135.83,135.79,2.92978442]
[1767853018146,7.31732508,135.83,135.79,0.70509125]
[1767853018339,0.69121332,135.84,135.8,2.92978442]
[1767853018646,0.69121332,135.84,135.81,2.92978442]
[1767853018941,7.31652105,135.85,135.82,2.22469317]
[1767853019634,0.69121332,135.84,135.82,2.22469317]
[1767853020140,0.69121332,135.84,135.81,2.92978442]
[1767853020745,0.69121332,135.82,135.73,0.70509125]
[1767853020953,13.44,135.83,135.73,0.70509125]
[1767853020954,0.69121332,135.79,135.73,0.70509125]
[1767853021156,0.69121332,135.79,135.74,2.22469317]
[1767853021353,0.69121332,135.77,135.73,2.92978442]
[1767853021544,0.69121332,135.77,135.73,2.22469317]
[1767853023053,0.69121332,135.77,135.74,2.22469317]
[1767853023458,0.69121332,135.77,135.73,0.68091226]
[1767853023664,0.6771626,135.75,135.69,0.68091226]
[1767853023868,0.6771626,135.75,135.65,40.7004785]
[1767853023869,0.6771626,135.73,135.68,2.22469317]
[1767853024168,0.6771626,135.73,135.69,2.22469317]
[1767853024325,0.6771626,135.75,135.7,2.90560543]
[1767853024525,0.6771626,135.75,135.7,0.68091226]
[1767853024950,0.6771626,135.75,135.7,2.90560543]
[1767853025332,0.6771626,135.74,135.7,2.90560543]
[1767853025531,0.6771626,135.74,135.66,16.28881161]
[1767853025532,0.6771626,135.7,135.66,16.28881161]
[1767853025756,2.90185577,135.7,135.66,16.28881161]
[1767853025961,0.6771626,135.7,135.66,16.28881161]
[1767853026264,0.28432314,135.74,135.67,2.90560543]
[1767853026265,0.6771626,135.72,135.67,2.90560543]
[1767853026467,0.6771626,135.72,135.68,2.90560543]
[1767853027172,0.6771626,135.69,135.66,15.60789935]
[1767853027572,0.6771626,135.68,135.66,15.60789935]
[1767853027858,0.6771626,135.66,135.62,2.22469317]
[1767853028388,0.6771626,135.65,135.61,0.2]
[1767853028875,0.6771626,135.65,135.61,5.67455301]
[1767853029454,7.31189935,135.65,135.61,5.67455301]
[1767853029669,0.6771626,135.64,135.61,0.2]
[1767853030067,0.96148574,135.62,135.57,6.15546527]
[1767853030249,0.6771626,135.61,135.57,5.47455301]
[1767853030572,0.6771626,135.63,135.6,5.47455301]
[1767853030876,6.63473675,135.65,135.58,0.68091226]
[1767853030877,7.31189935,135.65,135.59,0.68091226]
[1767853031172,0.6771626,135.64,135.6,0.68091226]
[1767853031375,0.6771626,135.62,135.56,0.68091226]
[1767853031577,0.6771626,135.62,135.57,0.68091226]
[1767853031871,0.6771626,135.62,135.56,0.68091226]
[1767853032078,0.6771626,135.62,135.57,0.68091226]
[1767853032373,0.6771626,135.62,135.58,0.68091226]
[1767853032567,0.6771626,135.64,135.61,5.47455301]
[1767853032767,0.6771626,135.64,135.55,25.82073035]
[1767853032768,0.6771626,135.62,135.55,0.68091226]
[1767853032951,0.6771626,135.62,135.48,9.99626394]
[1767853032952,0.6771626,135.54,135.48,9.99626394]
[1767853033147,0.28432314,135.55,135.45,15.82394883]
[1767853033148,0.6771626,135.52,135.45,15.82394883]
[1767853033351,0.6771626,135.52,135.36,3.84310127]
[1767853033352,0.5771626,135.46,135.36,3.84310127]
[1767853033565,3.843,135.41,135.32,0.68091226]
[1767853033772,3.843,135.41,135.33,13.46]
[1767853034096,3.118,135.41,135.36,7.38768014]
[1767853034251,3.118,135.41,135.37,20.84673501]
[1767853034652,3.118,135.41,135.37,39.31463779]
[1767853034852,3.118,135.41,135.37,20.84673501]
[1767853035186,0.6771626,135.45,135.4,5.47455301]
[1767853035375,0.6771626,135.45,135.38,13.46]
[1767853035682,0.6771626,135.45,135.39,13.46]
[1767853035852,0.6771626,135.47,135.41,0.68091226]
[1767853036048,6.64263347,135.49,135.43,0.68091226]
[1767853036049,0.6771626,135.49,135.43,0.68091226]
[1767853036253,0.6771626,135.49,135.44,5.47455301]
[1767853036479,0.6771626,135.49,135.43,0.68091226]
[1767853036775,0.6771626,135.48,135.43,5.47455301]
[1767853036982,0.14216157,135.52,135.41,5.47455301]
[1767853036983,0.6771626,135.46,135.41,5.47455301]
[1767853037454,16.60874257,135.48,135.39,13.46]
[1767853037656,5.47455301,135.44,135.37,0.68091226]
[1767853037875,36.99327139,135.49,135.4,5.47455301]
[1767853038076,0.67141809,135.45,135.37,0.68091226]
[1767853038267,0.10839922,135.44,135.37,0.68091226]
[1767853038473,0.10839922,135.44,135.38,13.46]
[1767853038660,0.10839922,135.44,135.35,7.38820051]
[1767853038661,0.6657879,135.43,135.36,5.47455301]
[1767853038855,0.66026975,135.41,135.35,0.68091226]
[1767853039061,0.66026975,135.41,135.37,5.47455301]
[1767853039464,7.30693721,135.41,135.35,0.68091226]
[1767853039777,7.30693721,135.41,135.36,5.47455301]
[1767853040076,8.1771626,135.43,135.38,5.47455301]
[1767853040278,8.1771626,135.43,135.35,0.68091226]
[1767853040279,0.10271216,135.42,135.35,0.68091226]
[1767853040462,0.67141809,135.41,135.35,0.68091226]
[1767853040664,0.10839922,135.4,135.33,0.68091226]
[1767853040864,0.10839922,135.4,135.3,0.68091226]
[1767853041184,0.65486141,135.33,135.26,4.52617405]
[1767853041383,0.65486141,135.33,135.27,5.47455301]
[1767853041559,0.6771626,135.35,135.29,0.68091226]
[1767853041761,0.6771626,135.39,135.33,0.68091226]
[1767853042076,0.10271216,135.38,135.31,0.68091226]
[1767853042282,0.10271216,135.4,135.31,0.68091226]
[1767853042576,13.58271216,135.45,135.34,0.68091226]
[1767853042882,0.67141809,135.44,135.37,5.47455301]
[1767853043085,0.10839922,135.43,135.35,0.68091226]
[1767853043583,0.10839922,135.43,135.36,0.68091226]
[1767853043778,5.47455301,135.42,135.36,0.68091226]
[1767853043985,7.5,135.42,135.38,5.47455301]
[1767853044181,0.6771626,135.47,135.4,6.15546527]
[1767853044380,5.47455301,135.43,135.38,14.16091226]
[1767853044686,7.31983948,135.49,135.41,0.68091226]
[1767853044884,0.10271216,135.48,135.42,5.47455301]
[1767853045058,5.47455301,135.47,135.42,5.47455301]
[1767853045260,5.47455301,135.49,135.43,0.68091226]
[1767853045493,6.58132712,135.5,135.44,0.68091226]
[1767853045675,0.10271216,135.49,135.41,0.68091226]
[1767853045879,0.10839922,135.47,135.39,0.68091226]
[1767853046083,0.6657879,135.46,135.39,0.68091226]
[1767853046296,5.47455301,135.47,135.42,5.47455301]
[1767853046584,5.47455301,135.47,135.41,0.68091226]
[1767853046761,0.10839922,135.45,135.4,5.47455301]
[1767853046963,5.47455301,135.46,135.4,0.68091226]
[1767853047174,6.1459711,135.46,135.41,5.47455301]
[1767853047569,0.67141809,135.46,135.4,0.68091226]
[1767853047903,0.67141809,135.46,135.4,8.06636503]
[1767853048181,5.9049928,135.48,135.42,5.47455301]
[1767853048182,6.5821554,135.48,135.42,5.47455301]
[1767853048585,5.47455301,135.46,135.42,5.47455301]
[1767853049085,5.47455301,135.47,135.42,0.68091226]
[1767853049474,5.47455301,135.47,135.4,6.15546527]
[1767853049475,0.67141809,135.47,135.4,6.15546527]
[1767853049676,5.47455301,135.45,135.4,6.15546527]
[1767853050066,5.47455301,135.46,135.41,5.47455301]
[1767853050265,6.1459711,135.47,135.42,5.47455301]
[1767853050565,11.37873587,135.5,135.44,0.68091226]
[1767853050779,14.1571626,135.51,135.46,5.47455301]
[1767853050981,0.6771626,135.51,135.47,5.47455301]
[1767853051187,6.15171561,135.51,135.46,5.47455301]
[1767853051488,5.47455301,135.49,135.43,0.68091226]
[1767853051695,11.48136674,135.5,135.45,5.47455301]
[1767853051872,0.6771626,135.52,135.46,5.47455301]
[1767853052074,0.6771626,135.52,135.46,6.15546527]
[1767853052075,5.47455301,135.51,135.46,6.15546527]
[1767853052390,11.37741335,135.53,135.48,5.47455301]
[1767853052567,5.47455301,135.5,135.45,6.15031694]
[1767853052893,0.12678595,135.51,135.45,6.15031694]
[1767853053091,0.12678595,135.51,135.41,18.46204949]
[1767853053092,0.63737583,135.45,135.39,0.67576393]
[1767853053281,5.47455301,135.42,135.37,6.15031694]
[1767853053790,0.65821305,135.46,135.38,0.67576393]
[1767853053981,7.5,135.41,135.39,0.67576393]
[1767853054183,12.97455301,135.41,135.37,0.67576393]
[1767853054373,0.12678595,135.43,135.37,0.67576393]
[1767853054574,5.60133896,135.43,135.38,5.47455301]
[1767853054800,5.47455301,135.43,135.39,0.67576393]
[1767853055176,5.47455301,135.44,135.39,0.67576393]
[1767853055379,5.90586329,135.46,135.4,0.67576393]
[1767853055683,5.90586329,135.46,135.4,0.17576393]
[1767853055883,0.65821305,135.47,135.41,5.47455301]
[1767853056202,5.47455301,135.42,135.37,5.47455301]
[1767853056386,0.65821305,135.46,135.36,18.95455301]
[1767853056577,5.47455301,135.46,135.41,5.47455301]
[1767853056897,6.56324985,135.48,135.41,5.47455301]
[1767853057075,5.47455301,135.47,135.41,5.47455301]
[1767853057712,5.47455301,135.46,135.41,0.67576393]
[1767853057990,5.47455301,135.46,135.38,7.38644805]
[1767853057991,0.65779564,135.46,135.39,0.67576393]
[1767853058175,0.65779564,135.46,135.38,5.47455301]
[1767853058176,5.47455301,135.47,135.42,0.67576393]
[1767853058381,0.65821305,135.5,135.43,6.15031694]
[1767853058695,0.65821305,135.5,135.38,0.28432314]
[1767853058696,6.13276606,135.5,135.45,0.67576393]
[1767853058880,5.47455301,135.5,135.45,0.67576393]
[1767853059070,5.2,135.49,135.45,0.67576393]
[1767853059272,6.56152702,135.52,135.45,0.67576393]
[1767853059472,5.47455301,135.49,135.45,0.67576393]
[1767853059890,6.13234865,135.5,135.45,0.67576393]
[1767853060293,0.61688545,135.49,135.43,14.15576393]
[1767853060485,8.91786953,135.48,135.44,0.67576393]
[1767853060687,9.53475498,135.49,135.44,0.67576393]
[1767853061193,8.91786953,135.49,135.44,0.67576393]
[1767853061501,8.91786953,135.52,135.47,9.59363346]
[1767853061795,8.91786953,135.52,135.48,0.67576393]
[1767853062194,8.91786953,135.5,135.46,0.67576393]
[1767853062398,0.65779564,135.51,135.46,0.67576393]
[1767853062695,8.91786953,135.5,135.45,8.91786953]
[1767853062902,8.91786953,135.46,135.41,0.67576393]
[1767853063091,8.91786953,135.43,135.38,0.67576393]
[1767853063481,8.91786953,135.44,135.39,0.67576393]
[1767853063688,8.91786953,135.44,135.4,0.67576393]
[1767853063998,0.61647221,135.5,135.43,0.67576393]
[1767853064194,0.61647221,135.5,135.44,0.67576393]
[1767853064378,8.91786953,135.49,135.44,0.67576393]
[1767853064581,8.91786953,135.48,135.44,0.67576393]
[1767853064782,8.91786953,135.47,135.44,0.67576393]
[1767853065293,8.91786953,135.45,135.42,0.67576393]
[1767853065490,8.91786953,135.45,135.41,0.67576393]
[1767853065696,8.91786953,135.43,135.38,0.67576393]
[1767853065877,6.52336511,135.46,135.38,0.67576393]
[1767853066077,8.91786953,135.43,135.39,0.67576393]
[1767853066772,14.76279316,135.48,135.4,0.67576393]
[1767853066773,6.56321203,135.48,135.4,0.67576393]
[1767853066979,8.91786953,135.46,135.41,0.67576393]
[1767853067174,8.91786953,135.47,135.42,0.67576393]
[1767853068103,8.91786953,135.49,135.44,0.67576393]
[1767853068302,8.91786953,135.5,135.45,0.67576393]
[1767853068480,8.91786953,135.5,135.45,9.59363346]
[1767853068684,6.56142633,135.52,135.46,0.67576393]
[1767853068879,8.91786953,135.52,135.47,0.67576393]
[1767853069184,0.75821305,135.54,135.47,0.67576393]
[1767853069373,8.91786953,135.52,135.47,0.67576393]
[1767853069772,8.91786953,135.52,135.48,0.67576393]
[1767853070383,6.660638,135.54,135.48,0.67576393]
[1767853070584,8.91786953,135.53,135.48,0.67576393]
[1767853070999,0.75821305,135.54,135.48,0.67576393]
[1767853071204,9.01786953,135.54,135.49,0.67576393]
[1767853072781,0.1,135.54,135.49,0.67576393]
[1767853073102,9.01786953,135.54,135.49,0.67576393]
[1767853073999,0.1,135.54,135.5,0.67576393]
[1767853074196,9.01786953,135.54,135.5,0.67576393]
[1767853074402,8.91786953,135.52,135.48,0.67576393]
[1767853074707,0.65738654,135.53,135.46,0.67576393]
[1767853074904,16.41786953,135.53,135.48,0.67576393]
[1767853075100,0.1,135.54,135.49,0.67576393]
[1767853075605,8.91786953,135.5,135.47,0.67576393]
[1767853075995,0.71647221,135.54,135.48,0.67576393]
[1767853076191,8.91786953,135.52,135.48,0.67576393]
[1767853076596,8.91786953,135.51,135.48,0.67576393]
[1767853076786,9.53515999,135.51,135.46,7.38207907]
[1767853077106,0.1,135.54,135.47,0.67576393]
[1767853077407,8.91786953,135.51,135.47,0.67576393]
[1767853077907,0.65779564,135.53,135.47,0.67576393]
[1767853078083,8.91786953,135.51,135.47,0.67576393]
[1767853079004,6.61890009,135.54,135.47,0.67576393]
[1767853079303,8.91786953,135.52,135.48,0.67576393]
[1767853079510,9.53515999,135.51,135.46,8.34193422]
[1767853079807,9.57485511,135.5,135.45,20.86260488]
[1767853080013,9.57485511,135.5,135.45,21.53836881]
[1767853080192,9.57485511,135.5,135.45,30.45623834]
[1767853080508,8.91786953,135.48,135.44,8.05889319]
[1767853080694,8.91786953,135.48,135.44,14.15576393]
[1767853080896,8.91786953,135.48,135.44,0.67576393]
[1767853081198,8.91786953,135.47,135.43,13.48]
[1767853081389,8.91786953,135.47,135.43,14.15576393]
[1767853081588,0.61688545,135.49,135.43,21.53963369]
[1767853081992,8.91786953,135.46,135.43,13.48]
[1767853082196,0.61688545,135.49,135.44,0.6995669]
[1767853082412,8.91786953,135.46,135.44,0.6995669]
[1767853082800,8.91786953,135.45,135.41,0.6995669]
[1767853082999,8.91786953,135.45,135.43,0.6995669]
[1767853083310,8.91786953,135.45,135.42,13.48]
[1767853083691,8.91786953,135.45,135.42,14.149346]
[1767853083893,0.61729046,135.47,135.41,13.48]
[1767853084097,8.91786953,135.43,135.4,0.669346]
[1767853084294,8.91786953,135.45,135.39,29.78373667]
[1767853084492,8.91786953,135.45,135.39,16.30373667]
[1767853084702,8.91786953,135.46,135.4,23.06721553]
[1767853084904,0.1,135.54,135.44,0.669346]
[1767853085106,8.91786953,135.52,135.46,9.58721553]
[1767853085304,8.91786953,135.53,135.48,0.669346]
[1767853085520,0.1,135.54,135.47,8.91786953]
[1767853085521,0.1,135.54,135.5,0.669346]
[1767853086213,8.91786953,135.53,135.5,0.669346]
[1767853086602,9.01786953,135.54,135.5,0.669346]
[1767853087692,0.1,135.54,135.5,0.669346]
[1767853087888,8.91786953,135.53,135.5,0.669346]
[1767853088294,8.91786953,135.53,135.46,0.669346]
[1767853088295,0.48627803,135.53,135.46,0.669346]
[1767853088617,8.91786953,135.51,135.46,14.149346]
[1767853088801,0.1,135.54,135.46,13.48]
[1767853088802,0.71821489,135.5,135.46,13.48]
[1767853089112,8.91786953,135.48,135.44,0.669346]
[1767853089314,0.71821489,135.5,135.44,8.91786953]
[1767853089617,0.48395889,135.49,135.45,8.91786953]
[1767853089818,8.91786953,135.5,135.45,0.669346]
[1767853090021,8.91786953,135.48,135.45,0.669346]
[1767853090319,8.91786953,135.47,135.43,0.669346]
[1767853090818,8.91786953,135.46,135.43,0.669346]
[1767853091022,8.91786953,135.44,135.42,13.48]
[1767853091520,8.91786953,135.44,135.41,0.669346]
[1767853092108,6.6189823,135.47,135.41,0.669346]
[1767853092311,0.71357638,135.47,135.41,0.669346]
[1767853092515,8.91786953,135.46,135.42,0.669346]
[1767853093017,0.71357638,135.47,135.43,0.669346]
[1767853093207,0.71357638,135.47,135.44,14.149346]
[1767853093521,6.62234779,135.5,135.44,14.149346]
[1767853093923,0.71821489,135.5,135.44,14.149346]
[1767853094120,8.91786953,135.48,135.44,14.149346]
[1767853094427,0.71821489,135.5,135.44,14.149346]
[1767853094600,8.91786953,135.49,135.44,14.149346]
[1767853095321,0.71821489,135.5,135.44,14.149346]
[1767853095621,8.91786953,135.5,135.46,0.669346]
[1767853095819,0.71821489,135.52,135.46,0.669346]
[1767853096121,0.48395889,135.51,135.46,13.48]
[1767853096322,0.48395889,135.51,135.46,14.149346]
[1767853096528,8.91786953,135.5,135.46,14.149346]
[1767853096822,8.91786953,135.5,135.42,18.74455433]
[1767853096823,8.91786953,135.48,135.43,0.669346]
[1767853097030,8.91786953,135.49,135.44,13.48]
[1767853097214,0.48627803,135.48,135.44,13.48]
[1767853097912,9.40414756,135.48,135.44,13.48]
[1767853098105,0.71357638,135.47,135.44,13.48]
[1767853098701,9.63608442,135.49,135.44,14.149346]
[1767853098896,0.71821489,135.49,135.44,14.149346]
[1767853099105,8.91786953,135.47,135.42,0.669346]
[1767853099298,8.91786953,135.44,135.4,0.669346]
[1767853099517,8.91786953,135.44,135.41,14.149346]
[1767853099698,8.91786953,135.45,135.41,0.669346]
[1767853099898,8.91786953,135.45,135.41,14.149346]